[Event "50th La Roda Open 2024"]
[Site "La Roda"]
[Date "2024.03.30"]
[Round "6.5"]
[White "Liu, Zexu"]
[Black "Peralta, Fernando"]
[Result "1-0"]
[ECO "A30"]
[WhiteElo "2325"]
[BlackElo "2580"]
[Annotator "TA"]
[PlyCount "67"]
[EventDate "2024.03.27"]
[EventType "swiss"]
[EventCountry "ESP"]
[SourceTitle "playchess.com"]
[Source "ChessBase"]
[SourceQuality "1"]
[TimeControl "5400+30"]

{[%evp 19,67,51,54,46,47,45,59,39,38,46,46,20,26,0,0,0,0,-4,-16,0,1,0,0,29,58,33,156,144,119,58,78,100,97,101,106,95,147,0,70,92,213,214,425,407,427,427,570,579,579,544]} 1. Nf3 {[%emt 0:00:32]} Nf6 {[%emt 0:00:11]} 2. c4 {[%emt 0:00:06]} e6 {[%emt 0:00:15]} 3. g3 {[%emt 0:00:36]} b6 {[%emt 0:00:17]} 4. Bg2 {[%emt 0:00:04]} Bb7 {[%emt 0:00:04]} 5. O-O {[%emt 0:00:05]} Be7 {[%emt 0:00:08]} 6. Nc3 {[%emt 0:00:04]} O-O {[%emt 0:00:11]} 7. Re1 {[%emt 0:00:03]} c5 {[%emt 0:00:19]} 8. e4 {[%emt 0:00:03]} d6 {[%emt 0:00:08]} 9. d4 {[%emt 0:00:04]} cxd4 {[%emt 0:00:08]} 10. Nxd4 {[%emt 0:00:05]} Qc8 {[%emt 0:00:09]} 11. Bf4 {[%emt 0:00:07]} a6 {[%emt 0:01:32]} 12. Rc1 {[%emt 0:00:08]} Re8 {[%emt 0:00:15][%cal Oe6e5]} 13. Be3 {[%emt 0:00:57] White is slightly better.} Nbd7 {[%emt 0:01:53]} 14. b3 {[%emt 0:02:28]} h6 {[%emt 0:11:51]} 15. f4 {[%emt 0:02:43]} Qc7 {[%emt 0:03:24]} 16. Bf3 {[%emt 0:02:51]} Rac8 {[%emt 0:04:55]} 17. Qd2 {[%emt 0:02:10]} Qb8 {[%emt 0:02:00]} 18. Qg2 {[%emt 0:02:07]} Nc5 {[%emt 0:11:40]} 19. Rcd1 {[%emt 0:02:02] Wards off Nd3} Qa8 {[%emt 0:08:23][%cal Rf6e4]} 20. Bf2 {[%emt 0:08:53]} b5 {[%emt 0:06:51]} 21. cxb5 {[%emt 0:02:13]} Nxb3 {[%emt 0:20:20]} 22. Nc6 {[%emt 0:01:06]} Na5 {[%emt 0:04:04]} ({Better is} 22... Nc5 $1 $14) 23. Nxa5 $16 {[%emt 0:16:17]} Rxc3 {[%emt 0:00:12]} 24. Bd4 {[%emt 0:08:30]} (24. Nxb7 $16 Qxb7 25. e5 Qxf3 26. Qxf3 Rxf3 27. exf6 gxf6 28. bxa6) 24... Rxf3 $14 {[%emt 0:03:45]} 25. Qxf3 {[%emt 0:02:34] Bxf6 would now be deadly.} Bxe4 {[%emt 0:01:25] [#]} (25... Nxe4 $2 {is the wrong capture.} 26. Nxb7 d5 27. Na5 axb5 28. Nb3 $18) 26. Rxe4 {[%emt 0:00:19]} Nxe4 {[%emt 0:01:26]} 27. b6 $36 {[%emt 0:00:09][%mdl 2048] White is on the roll. White is more active.} Qd5 {[%emt 0:02:02]} (27... d5 $142) 28. Bf2 {[%emt 0:07:26]} (28. b7 $1 $16) 28... Qxa5 {[%emt 0:01:36]} (28... Qf5 $11 29. Nc6 Nxf2 30. Qxf2 Bf8) 29. Qxe4 {[%emt 0:00:06]} Rb8 {[%emt 0:09:04] [#] Black cannot hold the game after this.} (29... Qxa2 $16 {was called for.} 30. Qc6 Rf8) 30. Qc6 $1 $18 {[%emt 0:00:47] aiming for b7.} Qb5 $2 {[%emt 0:03:34]} ({Don't play} 30... Qxa2 31. Qc7 Re8 32. Qd7 $18) (30... d5 31. b7 Kh7) 31. Qxb5 {[%emt 0:01:45]} axb5 {[%emt 0:00:04]} 32. Rb1 {[%emt 0:00:04] White is clearly winning.} Kf8 {[%emt 0:03:49]} 33. Rxb5 {[%emt 0:00:04]} Ke8 {[%emt 0:00:30]} 34. b7 {[%emt 0:00:36] Weighted Error Value: White=0.13 (very precise) /Black=0.41.  Mistake:       	White=2     	Black=5      Inaccurate:     	White=2     	Black=2      OK:         	White=5     	Black=10     Best:        	White=5     	Black=1      Strong:       	White=1     	---        Brilliant:      	White=1     	---} 1-0

[Event "50th La Roda Open 2024"]
[Site "La Roda"]
[Date "2024.03.30"]
[Round "6.6"]
[White "Lopez Mijail, Nicolas"]
[Black "Elias Reyes, Jorge Roberto"]
[Result "0-1"]
[ECO "B72"]
[WhiteElo "2231"]
[BlackElo "2473"]
[Annotator "TA"]
[PlyCount "138"]
[EventDate "2024.03.27"]
[EventType "swiss"]
[EventCountry "ESP"]
[SourceTitle "playchess.com"]
[Source "ChessBase"]
[SourceQuality "1"]
[TimeControl "5400+30"]

{[%evp 42,138,0,0,0,-10,-10,-39,0,0,0,-10,-17,-137,-33,-30,-29,-29,-29,-30,0,-5,-8,-26,0,-7,-12,-11,-12,-33,-24,-31,-16,-39,0,-28,0,0,0,-33,-21,-77,-53,-153,-158,-301,-287,-293,-91,-127,0,0,0,0,0,0,0,-75,-44,-44,-37,-389,-389,-382,-382,-375,-367,-360,-356,-488,-448,-563,-537,-1079,-1071,-1057,-1057,-1024,-1057,-996,-826,-1057,-1057,-29951,-12383,-29958,-29964,-29958,-29965,-29961,-29957,-6502,-5072,-1697,-1390,-1589,-1561,-1227,-795]} 1. e4 {[%emt 0:00:15]} c5 {[%emt 0:01:28]} 2. Nf3 {[%emt 0:00:07]} d6 {[%emt 0:00:05]} 3. d4 {[%emt 0:00:04]} cxd4 {[%emt 0:00:04]} 4. Nxd4 {[%emt 0:00:04]} Nf6 {[%emt 0:00:04]} 5. Nc3 {[%emt 0:00:04]} a6 {[%emt 0:00:03]} 6. h3 {[%emt 0:00:12]} Nc6 {[%emt 0:01:46]} 7. Be3 {[%emt 0:08:12]} g6 {[%emt 0:00:09]} 8. Qd2 {[%emt 0:01:33]} Bg7 {[%emt 0:07:29]} 9. O-O-O {[%emt 0:02:15]} Nxd4 {[%emt 0:07:46]} 10. Bxd4 {[%emt 0:00:09]} Be6 {[%emt 0:02:13]} 11. g4 {[%emt 0:03:03]} Qa5 {[%emt 0:11:32]} 12. a3 {[%emt 0:08:57]} O-O {[%emt 0:00:52]} 13. Kb1 {[%emt 0:05:55]} Rfc8 {[%emt 0:11:04]} 14. f4 {[%emt 0:06:40]} b5 {[%emt 0:15:19]} 15. Bg2 {[%emt 0:11:57]} b4 {[%emt 0:05:31]} 16. axb4 {[%emt 0:05:25]} Qxb4 {[%emt 0:00:07]} 17. Nd5 {[%emt 0:00:37]} Nxd5 {[%emt 0:04:41]} 18. exd5 {[%emt 0:00:59]} Qxd2 {[%emt 0:00:07]} 19. Rxd2 {[%emt 0:00:11]} Bd7 {[%emt 0:00:04]} 20. Re1 {[%emt 0:00:49]} Re8 {[%emt 0:01:42]} 21. c3 {[%emt 0:06:45]} Rab8 {[%emt 0:02:19]} 22. Kc2 {[%emt 0:05:15]} a5 {[%emt 0:06:11]} 23. Bxg7 {[%emt 0:01:55]} Kxg7 {[%emt 0:00:09]} 24. Rd4 {[%emt 0:00:07]} a4 {[%emt 0:01:01]} 25. Bf3 {[%emt 0:00:45]} Rb6 {[%emt 0:03:19]} 26. Rc4 {[%emt 0:02:14]} Reb8 {[%emt 0:01:12]} 27. Rb1 {[%emt 0:03:19]} (27. b4 $1 $11 {remains equal.}) 27... R8b7 {[%emt 0:06:58]} (27... Rb3 $1 $17 28. Rc7 a3 29. Rxd7 a2) 28. Kc1 {[%emt 0:02:25]} h5 {[%emt 0:03:23]} (28... a3 $6 29. b4 $11) 29. Bd1 {[%emt 0:02:32]} hxg4 {[%emt 0:00:07]} 30. hxg4 {[%emt 0:00:05]} Ra7 {[%emt 0:02:42]} (30... a3 $5 31. b4 Ra7 $15) 31. Ra1 {[%emt 0:03:23]} Rb8 {[%emt 0:01:01]} 32. Ra3 {[%emt 0:02:11]} Rh8 {[%emt 0:00:35]} 33. b3 {[%emt 0:06:35]} Rh1 {[%emt 0:00:24]} 34. Kd2 {[%emt 0:00:22]} Rb7 {[%emt 0:00:52]} 35. b4 {[%emt 0:01:07]} Rh2+ {[%emt 0:01:18]} 36. Ke3 {[%emt 0:03:08]} Rh3+ {[%emt 0:00:03]} 37. Kf2 {[%emt 0:01:21]} Rh2+ {[%emt 0:01:01]} 38. Ke3 {[%emt 0:00:45]} Kf6 {[%emt 0:01:30]} 39. g5+ {[%emt 0:04:57]} Kg7 {[%emt 0:00:12]} 40. Rd4 {[%emt 0:00:52]} f6 {[%emt 0:00:37]} 41. gxf6+ {[%emt 0:00:55]} (41. Bxa4 Ra7 42. Bxd7 Rxa3 $17) (41. Bf3 $11 {keeps the balance.}) 41... Kxf6 {[%emt 0:00:02]} 42. Rd2 {[%emt 0:01:07]} (42. Be2 $15) 42... Rh3+ $17 {[%emt 0:00:03]} 43. Bf3 {[%emt 0:00:08]} (43. Kd4 $17 {was worth a try.} Rxb4+ 44. cxb4 Rxa3 45. Rg2) 43... Bg4 $19 {[%emt 0:01:28]} 44. Rf2 {[%emt 0:00:02] [#]} Rc7 $2 {[%emt 0:00:24]} (44... Kf5 $1 $19 {and Black stays clearly on top. aiming for ...Rb8.} 45. b5 (45. Rxa4 $2 {perishes.} Rc7 $19) 45... Rxb5 46. Rxa4 Rxd5) 45. Ke2 {[%emt 0:00:42] [#]} Rxf3 {[%emt 0:00:43]} ({Better is} 45... Bf5 $1 $17 46. Ke1 Bd7) 46. Rxf3 $11 {[%emt 0:00:03]} Kf5 {[%emt 0:00:11]} 47. Kf2 {[%emt 0:00:51]} Bxf3 {[%emt 0:00:05]} 48. Kxf3 {[%emt 0:00:03]} Rc4 {[%emt 0:00:09]} 49. Kg3 {[%emt 0:01:40]} (49. Ke3 $11) 49... Rxf4 $17 {[%emt 0:01:10]} 50. Rxa4 {[%emt 0:00:04]} Rc4 {[%emt 0:00:14]} 51. Kf3 $2 {[%emt 0:01:12][%mdl 8192]} (51. Ra3 $15) 51... Rxc3+ $19 {[%emt 0:00:08]} 52. Ke2 {[%emt 0:00:30]} Rb3 {[%emt 0:00:49]} 53. Kd2 {[%emt 0:00:06]} Ke5 {[%emt 0:01:47]} 54. Kc2 {[%emt 0:00:03]} Re3 {[%emt 0:00:22]} 55. Ra5 {[%emt 0:02:32]} Kd4 {[%emt 0:00:25]} 56. b5 {[%emt 0:00:27]} Kxd5 {[%emt 0:00:57]} 57. b6+ {[%emt 0:00:04]} Kc6 {[%emt 0:00:05]} 58. Rb5 {[%emt 0:00:03]} Kb7 {[%emt 0:00:46]} (58... Kxb5 $2 {is the wrong capture.} 59. b7 $18) 59. Kd2 {[%emt 0:00:10]} Re5 {[%emt 0:00:19]} 60. Rb1 {[%emt 0:00:10]} g5 {[%emt 0:00:13]} 61. Kd3 {[%emt 0:00:05]} g4 {[%emt 0:00:21]} 62. Rb4 {[%emt 0:00:31]} Rg5 {[%emt 0:00:29]} 63. Ke2 {[%emt 0:00:05]} g3 {[%emt 0:00:09]} 64. Kf1 {[%emt 0:00:03]} g2+ {[%emt 0:02:57]} 65. Kg1 {[%emt 0:00:05]} Rg6 {[%emt 0:00:29]} 66. Rb5 {[%emt 0:00:28]} Rg8 {[%emt 0:00:38]} 67. Rb2 {[%emt 0:00:12]} Rc8 {[%emt 0:00:50]} 68. Re2 {[%emt 0:00:27]} e5 {[%emt 0:00:11]} (68... Kxb6 69. Rxe7 Rg8 70. Re2) 69. Rb2 {[%emt 0:00:21]} Rc6 {[%emt 0:00:05]} 0-1

[Event "50th La Roda Open 2024"]
[Site "La Roda"]
[Date "2024.03.30"]
[Round "6.7"]
[White "Bustos Bernardo, Samuel"]
[Black "Admiraal, Miguoel"]
[Result "1/2-1/2"]
[ECO "D15"]
[WhiteElo "2188"]
[BlackElo "2471"]
[Annotator "TA"]
[PlyCount "84"]
[EventDate "2024.03.27"]
[EventType "swiss"]
[EventCountry "ESP"]
[SourceTitle "playchess.com"]
[Source "ChessBase"]
[SourceQuality "1"]
[TimeControl "5400+30"]

{[%evp 9,84,25,33,27,27,23,28,19,39,19,25,22,23,21,18,10,20,0,120,117,120,118,123,109,124,120,145,151,151,136,157,81,70,8,108,99,127,54,41,37,67,52,178,169,161,163,252,118,165,161,384,141,122,0,0,-64,-93,-170,0,0,6,5,8,-82,-79,-77,-77,-83,0,0,0,0,0,0,0,0,0]} 1. Nf3 {[%emt 0:00:03]} d5 {[%emt 0:03:10]} 2. d4 {[%emt 0:00:08]} Nf6 {[%emt 0:00:09]} 3. c4 {[%emt 0:00:06]} c6 {[%emt 0:00:06]} 4. e3 {[%emt 0:00:14]} Bf5 {[%emt 0:01:06]} 5. Nc3 {[%emt 0:00:08]} a6 {[%emt 0:02:16]} 6. Ne5 {[%emt 0:00:34]} Nbd7 {[%emt 0:02:36]} 7. Qb3 {[%emt 0:00:43][%csl LRb7,LRd5]} Qc7 {[%emt 0:00:07]} 8. cxd5 {[%emt 0:00:52] White has an edge.} Nxe5 {[%emt 0:00:10]} 9. dxe5 {[%emt 0:00:06]} Nxd5 {[%emt 0:00:05]} 10. Nxd5 {[%emt 0:00:16]} cxd5 {[%emt 0:00:03]} 11. Bd2 {[%emt 0:02:58]} Qxe5 {[%emt 0:00:08]} 12. Rc1 {[%emt 0:03:54][%cal Of1e2]} Bd7 {[%emt 0:27:01]} 13. Bd3 {[%emt 0:01:08]} f6 {[%emt 0:29:51]} (13... e6 $11) 14. Qxb7 $16 {[%emt 0:26:05]} Rb8 {[%emt 0:00:20]} 15. Qxa6 {[%emt 0:02:41]} Qxb2 {[%emt 0:02:44]} 16. Ke2 $1 {[%emt 0:01:27] aiming for Rb1.} Kf7 {[%emt 0:12:01]} 17. a4 {[%emt 0:07:33]} Qe5 {[%emt 0:08:22] Dodges Rc7} 18. Qa7 {[%emt 0:07:41]} Be6 {[%emt 0:00:28]} 19. a5 {[%emt 0:02:42]} g6 {[%emt 0:00:16]} 20. Rc7 {[%emt 0:00:48]} (20. f4 $142 Qd6 21. Rb1) 20... Rb2 {[%emt 0:00:32]} 21. Qc5 {[%emt 0:08:26]} (21. Rhc1 $14) 21... Bg4+ {[%emt 0:05:19]} (21... Qg5 $1 $11 {keeps the balance.}) 22. f3 {[%emt 0:00:15]} Bf5 {[%emt 0:02:08]} 23. a6 {[%emt 0:10:46]} ({Better is} 23. Bxf5 $16 gxf5 24. Rd7) 23... Bh6 {[%emt 0:00:55][%cal Oh6e3] ...Bxe3! would now be deadly.} 24. Rc1 $36 {[%emt 0:01:09][%mdl 2048] White is more active.} Bxd3+ {[%emt 0:01:45]} 25. Kxd3 {[%emt 0:00:08] Strongly threatening a7.} Re8 {[%emt 0:00:44]} (25... d4 $14 26. Qxe5 (26. Qxd4 $2 Rxd2+ 27. Kxd2 Qxd4+ $19) 26... fxe5) 26. a7 $18 {[%emt 0:03:29]} Ra2 {[%emt 0:00:01][%cal Oe5e6]} 27. Rc2 $1 {[%emt 0:00:48]} Ra1 {[%emt 0:01:04]} (27... Ra4 {was worth a try.}) 28. g3 {[%emt 0:02:14]} (28. Ke2 $18 {has better winning chances. Hoping for Bc3.} Bf4 29. Bc3 Qxc7 30. Bxa1 Qxc5 31. Rxc5 Bxh2 32. Rxd5) 28... Qf5+ {[%emt 0:00:25]} (28... Qe6 $16) 29. Ke2 {[%emt 0:00:18]} Qh3 $2 {[%emt 0:00:24]} (29... Qe6 {was necessary.} 30. Bc3 Ra4) 30. Qxd5+ $2 {[%emt 0:04:27]} (30. Rc1 $18 {is the precise move to win.} Qg2+ 31. Kd3) 30... Kg7 $16 {[%emt 0:00:00][%csl Ga1][%cal Rh3f1] [#]} 31. Kd3 {[%emt 0:02:42] Active counter play!} (31. Bc1 $1 $16) 31... Qf1+ $11 {[%emt 0:00:21]} 32. Ke4 {[%emt 0:02:05]} (32. Kc3 $11 Bxe3 33. Bxe3 Ra3+ 34. Kb4) 32... Ra4+ $15 {[%emt 0:01:01]} 33. R2c4 {[%emt 0:00:32] [#]} Qb1+ $2 {[%emt 0:00:28]} ({Black should play} 33... Ra3 $1 $19 {Threatens to win with ...Qb1+.} 34. Qd7 Qb1+ 35. Kd5 Bxe3 36. Bxe3 (36. Qxe8 {is a self mate.} Qf5+ 37. Kc6 Qe6+ 38. Kb7 Rxa7+ 39. Kb8 Qb6+ 40. Kc8 Ra8+ 41. Kd7 Qd6#) 36... Rxe3 37. Qxe8 Re5+ 38. Kd4 Qg1+ 39. Kc3 Qa1+ 40. Kd3 Qf1+ 41. Kd4 Qd1+ 42. Kc3 Qa1+ 43. Kb3 Qb1+ 44. Ka3 Qa1+ 45. Kb3 Qb1+ 46. Ka3 Qa1+ 47. Kb3) 34. Kd4 $11 {[%emt 0:00:29]} Qb6+ {[%emt 0:00:47]} (34... Ra3 $5 35. Bc3 $8 Qc1 $11) 35. Kd3 $1 {[%emt 0:01:52] The board is on fire.} ({Wrong is} 35. Qc5 $2 Qb2+ 36. Kd3 Rd8+ 37. Rd4 Rdxd4+ 38. exd4 Qxd2+ $19 (38... Bxd2 39. Qxe7+ Kh6 40. Qxh7+ Kg5 41. Qh4+ Kf5 42. Qg4#)) 35... Rxa7 {[%emt 0:00:31]} 36. Qd7 {[%emt 0:01:07]} (36. Rxa7 $11 Qxa7 37. Ke2) 36... Qb3+ {[%emt 0:00:11]} 37. Rc3 {[%emt 0:00:39]} Rxc7 {[%emt 0:00:48]} 38. Qxc7 {[%emt 0:00:59]} Qd1 {[%emt 0:00:32]} ({Black should try} 38... Qb5+ $17 39. Rc4 Qf5+ 40. Ke2 Qh3) 39. Qd7 {[%emt 0:00:46] The position is equal.} Kf8 {[%emt 0:00:30]} 40. Rc8 {[%emt 0:01:30]} Qb3+ {[%emt 0:00:27]} 41. Ke2 {[%emt 0:00:26]} Rxc8 {[%emt 0:00:28]} 42. Qxc8+ {[%emt 0:00:05]} Kg7 {[%emt 0:00:35] Blacks defense is rewarded with a draw.   Weighted Error Value: White=0.31/Black=0.37.  Missed win:     	White=1     	Black=1      Mistake:       	White=7     	Black=7      OK:         	White=12    	Black=14     Best:        	White=5     	Black=4      Strong:       	White=3     	---} 1/2-1/2

[Event "50th La Roda Open 2024"]
[Site "La Roda"]
[Date "2024.03.30"]
[Round "6.8"]
[White "Ponce Navalon, Jose"]
[Black "Martinez Ramirez, Lennis"]
[Result "0-1"]
[ECO "B42"]
[WhiteElo "2141"]
[BlackElo "2450"]
[Annotator "RC"]
[PlyCount "112"]
[EventDate "2024.03.27"]
[EventType "swiss"]
[EventCountry "ESP"]
[SourceTitle "playchess.com"]
[Source "ChessBase"]
[SourceQuality "1"]
[TimeControl "5400+30"]

1. e4 {[%emt 0:10:51]} c5 {[%emt 0:00:02]} 2. Nf3 {[%emt 0:00:04]} e6 {[%emt 0:00:04]} 3. d4 {[%emt 0:00:05]} cxd4 {[%emt 0:00:04]} 4. Nxd4 {[%emt 0:00:08]} Nf6 {[%emt 0:00:02]} 5. Bd3 {[%emt 0:00:05]} a6 {[%emt 0:07:11]} 6. O-O {[%emt 0:01:35]} Qc7 {[%emt 0:01:15]} 7. Nd2 {[%emt 0:00:12]} Bc5 {[%emt 0:02:09]} 8. N2b3 {[%emt 0:02:03]} Ba7 {[%emt 0:00:17]} 9. Bg5 {[%emt 0:07:21]} Nc6 {[%emt 0:04:46]} 10. Nxc6 {[%emt 0:09:36]} bxc6 {[%emt 0:00:13]} 11. Qf3 {[%emt 0:02:00]} Qe5 {[%emt 0:10:14]} 12. Bf4 {[%emt 0:03:02]} Qh5 {[%emt 0:03:40]} 13. Qxh5 {[%emt 0:00:22]} Nxh5 {[%emt 0:01:10]} 14. Bd6 {[%emt 0:00:07]} g5 {[%emt 0:04:05]} 15. a4 {[%emt 0:10:46]} Bb8 {[%emt 0:01:16]} 16. e5 {[%emt 0:01:24]} f6 {[%emt 0:01:13]} 17. Rfe1 {[%emt 0:02:00]} Nf4 {[%emt 0:01:41]} 18. Bf1 {[%emt 0:08:51]} Ng6 {[%emt 0:00:41]} 19. Bxb8 {[%emt 0:00:55]} Rxb8 {[%emt 0:00:19]} 20. exf6 {[%emt 0:00:06]} Rf8 {[%emt 0:01:05]} 21. Ra2 {[%emt 0:03:09]} Rxf6 {[%emt 0:00:09]} 22. Nc5 {[%emt 0:01:11]} Rf5 {[%emt 0:02:26]} 23. Nxa6 {[%emt 0:04:43]} Rb6 {[%emt 0:00:09]} 24. Nc7+ {[%emt 0:00:06]} Kd8 {[%emt 0:00:26]} 25. a5 {[%emt 0:00:04]} Rb8 {[%emt 0:04:32]} 26. Na6 {[%emt 0:02:27]} Ra8 {[%emt 0:03:02]} 27. Nb4 {[%emt 0:00:44]} Rfxa5 {[%emt 0:00:18]} 28. Rea1 {[%emt 0:02:53]} Rxa2 {[%emt 0:00:30]} 29. Rxa2 {[%emt 0:00:05]} Rxa2 {[%emt 0:02:00]} 30. Nxa2 {[%emt 0:00:09]} h6 {[%emt 0:00:19]} 31. f3 {[%emt 0:07:18]} d5 {[%emt 0:01:01]} 32. Nb4 {[%emt 0:00:26]} Kc7 {[%emt 0:00:46]} 33. c3 {[%emt 0:00:14]} c5 {[%emt 0:01:35]} 34. Nc2 {[%emt 0:00:10]} c4 {[%emt 0:00:24]} 35. Kf2 {[%emt 0:00:46]} e5 {[%emt 0:00:21]} 36. Na1 {[%emt 0:00:40]} Ba6 {[%emt 0:01:47]} 37. g3 {[%emt 0:01:18]} Kb6 {[%emt 0:00:16]} 38. Bh3 {[%emt 0:00:13]} Kc5 {[%emt 0:00:45]} 39. Be6 {[%emt 0:02:05]} Ne7 {[%emt 0:06:01]} 40. Nc2 {[%emt 0:00:58]} d4 {[%emt 0:04:56]} 41. cxd4+ {[%emt 0:04:40]} exd4 {[%emt 0:00:05]} 42. b4+ {[%emt 0:00:04]} cxb3 {[%emt 0:01:15]} 43. Bxb3 {[%emt 0:00:03]} d3 {[%emt 0:02:33]} 44. Ne3 {[%emt 0:00:06]} Kd4 {[%emt 0:00:02]} 45. Nd1 {[%emt 0:02:54]} d2 {[%emt 0:01:19]} 46. Bc2 {[%emt 0:01:35]} Nd5 {[%emt 0:00:31]} 47. Bb3 {[%emt 0:03:33]} Nb4 {[%emt 0:01:50]} 48. Bf7 {[%emt 0:01:51]} Nd3+ {[%emt 0:00:06]} 49. Kg2 {[%emt 0:04:37]} Ne5 {[%emt 0:01:26]} 50. Bb3 {[%emt 0:01:00]} Bb7 {[%emt 0:00:15]} 51. Kf2 {[%emt 0:00:20]} Bxf3 {[%emt 0:00:26]} 52. h3 {[%emt 0:02:08]} h5 {[%emt 0:01:00]} 53. Bc2 {[%emt 0:00:59]} g4 {[%emt 0:00:51]} 54. h4 {[%emt 0:00:47]} Nd3+ {[%emt 0:00:15]} 55. Kf1 {[%emt 0:00:09]} Bxd1 {[%emt 0:00:32]} 56. Bxd1 {[%emt 0:00:04]} Ke3 {[%emt 0:00:39]} 0-1

[Event "50th La Roda Open 2024"]
[Site "La Roda"]
[Date "2024.03.30"]
[Round "6.9"]
[White "Sanchez Alvarez, Roberto Carlos"]
[Black "Rottenwohrer Suarez, Juan"]
[Result "1-0"]
[ECO "A28"]
[WhiteElo "2407"]
[BlackElo "2275"]
[Annotator "TA"]
[PlyCount "101"]
[EventDate "2024.03.27"]
[EventType "swiss"]
[EventCountry "ESP"]
[SourceTitle "playchess.com"]
[Source "ChessBase"]
[SourceQuality "1"]
[TimeControl "5400+30"]

{[%evp 11,101,10,6,-4,10,10,9,12,24,0,33,12,43,29,60,61,79,40,163,73,78,81,191,167,226,223,241,220,491,475,572,310,299,306,295,287,426,407,423,423,901,851,1353,568,833,825,1750,1585,1891,1737,1451,874,984,0,964,969,969,878,1054,1042,952,856,1527,1544,1592,1282,1732,1211,1661,1327,1420,1447,29965,29966,29959,5061,29979,29980,29980,29976,29984,29985,29987,29982,29988,29986,29986,29985,29985,29986,29986,29987]} 1. c4 {[%emt 0:02:40]} e5 {[%emt 0:00:41]} 2. Nc3 {[%emt 0:00:20]} Nf6 {[%emt 0:00:05]} 3. Nf3 {[%emt 0:00:16]} Nc6 {[%emt 0:00:20]} 4. e3 {[%emt 0:04:05]} Bb4 {[%emt 0:00:30]} 5. Qc2 {[%emt 0:00:10]} Bxc3 {[%emt 0:01:13]} 6. Qxc3 {[%emt 0:04:16]} Qe7 {[%emt 0:00:10]} 7. d4 {[%emt 0:02:00]} e4 {[%emt 0:03:06]} 8. Nd2 {[%emt 0:04:46]} d5 {[%emt 0:00:02]} 9. a3 {[%emt 0:10:54] The position is equal.} a5 {[%emt 0:02:26]} 10. h3 {[%emt 0:00:14]} h5 {[%emt 0:01:06]} 11. b3 {[%emt 0:05:56]} h4 {[%emt 0:05:06]} 12. Bb2 {[%emt 0:00:48]} g5 {[%emt 0:03:17]} 13. Qc2 {[%emt 0:03:31]} Be6 {[%emt 0:04:10]} 14. O-O-O {[%emt 0:03:27]} g4 {[%emt 0:04:25]} ({Black should play} 14... O-O-O $14) 15. cxd5 {[%emt 0:06:58]} (15. hxg4 $18 {and White stays clearly on top. Black must now prevent g5.} a4 16. bxa4) 15... Bxd5 $16 {[%emt 0:01:29]} 16. hxg4 {[%emt 0:00:01] Threatens to win with g5.} Nxg4 {[%emt 0:01:08]} (16... O-O-O $16) 17. Bc4 $18 {[%emt 0:02:29]} Bxc4 {[%emt 0:14:44]} (17... Nf6 $142) 18. Nxc4 {[%emt 0:00:51]} Rh6 {[%emt 0:00:02]} 19. d5 {[%emt 0:13:43]} Nd8 {[%emt 0:13:32]} (19... Nce5) 20. f3 {[%emt 0:03:44]} b5 {[%emt 0:03:47]} 21. d6 {[%emt 0:05:56]} cxd6 {[%emt 0:07:57]} 22. Nxd6+ {[%emt 0:00:16]} (22. Qxe4 $2 Qxe4 23. Nxd6+ Rxd6 24. fxe4 Rc6+ 25. Kd2 Nf2 26. Rxh4 Nxd1 27. Kxd1 Rac8 28. Rh8+ Ke7 $19) (22. fxg4 bxc4 23. Qxc4 Rb8 $16) 22... Rxd6 {[%emt 0:00:10]} 23. Rxd6 {[%emt 0:00:06]} (23. fxg4 Raa6 24. Qf2 (24. Kb1 Rac6 $11) 24... Rac6+ 25. Kb1 Rxd1+ 26. Rxd1 Rd6 27. Rxd6 Qxd6 $11) 23... Nxe3 {[%emt 0:00:55]} (23... Qxd6 $142 24. Qxe4+ (24. fxg4 Ne6 $16) 24... Kf8 25. Qxg4 (25. Qxa8 Nf2 $18) 25... Qd3) 24. Qxe4 {[%emt 0:00:30]} Rc8+ {[%emt 0:01:00]} 25. Kb1 {[%emt 0:00:10]} Ne6 {[%emt 0:00:44]} (25... Qxe4+ $142 26. fxe4 a4 27. Rxh4 Ke7) 26. Rd2 {[%emt 0:05:25]} Qg5 {[%emt 0:06:02]} 27. Qxh4 {[%emt 0:03:32]} (27. Rxh4 $142 Qe7 28. Re2) 27... Qf5+ {[%emt 0:03:55]} 28. Ka2 {[%emt 0:03:14]} Rc2 {[%emt 0:01:18]} 29. Qh8+ {[%emt 0:01:57]} Ke7 {[%emt 0:01:06]} 30. Rxc2 {[%emt 0:00:02]} Nxc2 {[%emt 0:00:45]} 31. Rd1 {[%emt 0:02:34] Hoping for Qc8.} a4 {[%emt 0:04:32]} 32. Bf6+ {[%emt 0:00:07]} Qxf6 {[%emt 0:00:04] [#]} 33. Rd7+ $3 {[%emt 0:00:11][%mdl 512]} Kxd7 {[%emt 0:00:01]} 34. Qxf6 {[%emt 0:00:12]} axb3+ {[%emt 0:00:02]} 35. Kxb3 {[%emt 0:00:10]} Ncd4+ {[%emt 0:00:06]} 36. Kc3 {[%emt 0:00:06]} Ne2+ {[%emt 0:01:30]} 37. Kb4 {[%emt 0:01:37]} N2f4 {[%emt 0:00:55]} 38. Qxf7+ {[%emt 0:01:12]} Kd6 {[%emt 0:00:01]} 39. g3 {[%emt 0:00:24]} Nd3+ {[%emt 0:01:30]} 40. Kxb5 {[%emt 0:00:33] Threatening mate with f4.} Ne5 {[%emt 0:00:03]} 41. Qf6 {[%emt 0:01:20]} Nxf3 {[%emt 0:00:34]} 42. a4 {[%emt 0:02:15][%cal Ba3a4,Ba4a5][%mdl 32]} Ne5 {[%emt 0:02:02]} 43. a5 {[%emt 0:00:49] a6 would kill now.} Nd7 {[%emt 0:00:01]} 44. Qh6 {[%emt 0:00:38] White mates.} Kd5 {[%emt 0:00:35]} 45. Qh5+ {[%emt 0:00:25]} Kd6 {[%emt 0:00:40]} 46. Qd1+ {[%emt 0:02:48]} Kc7 {[%emt 0:00:01]} 47. g4 {[%emt 0:00:19][%cal Bg3g4,Bg4g5][%mdl 32]} Nf6 {[%emt 0:01:49] [#]} 48. g5 $1 {[%emt 0:00:39]} Ne8 {[%emt 0:00:51]} 49. g6 {[%emt 0:00:57]} Nd6+ {[%emt 0:00:53]} 50. Kb4 {[%emt 0:00:11]} Nc8 {[%emt 0:02:34]} 51. Qd5 {[%emt 0:06:16] Weighted Error Value: White=1.14/Black=0.66.  Mistake:       	White=1     	Black=6      Inaccurate:     	White=2     	Black=5      OK:         	White=5     	Black=1      Best:        	White=3     	---} 1-0